[Event "Argentine Youth-Junior-ch 2025"]
[Site "Mar del Plata"]
[Date "2025.04.16"]
[Round "2.10"]
[White "Crespo Martinelli, Amadis"]
[Black "Alvarez, Mia Morena"]
[Result "0-1"]
[Annotator "NA RC"]
[ECO "A31"]
[WhiteElo "1493"]
[BlackElo "1819"]
[PlyCount "68"]
[EventDate "2025.04.14"]
[EventType "swiss"]
[EventCountry "ARG"]
[SourceTitle "playchess.com"]
[Source "ChessBase"]
[SourceQuality "1"]
[TimeControl "3600+30"]

1. c4 {[%emt 0:00:04]} c5 {[%emt 0:00:36]} 2. Nf3 {[%emt 0:00:28]} Nf6 {[%emt 0:00:29]} 3. d4 {[%emt 0:00:33]} cxd4 {[%emt 0:00:08]} 4. Nxd4 {[%emt 0:00:08]} e5 {[%emt 0:00:34]} 5. Nb3 {[%emt 0:00:56]} Nc6 {[%emt 0:00:37]} 6. Nc3 {[%emt 0:01:18]} Bb4 {[%emt 0:01:11]} 7. Bd2 {[%emt 0:03:49]} Bxc3 {[%emt 0:02:10]} 8. Bxc3 {[%emt 0:00:58]} d6 {[%emt 0:00:29]} 9. e3 {[%emt 0:01:57]} Ne4 {[%emt 0:00:37]} 10. Qc2 {[%emt 0:06:07]} Nxc3 {[%emt 0:01:55]} 11. Qxc3 {[%emt 0:01:06]} O-O {[%emt 0:00:19]} 12. Bd3 {[%emt 0:05:49]} f5 {[%emt 0:01:13]} 13. O-O {[%emt 0:07:06]} Be6 {[%emt 0:00:46]} 14. e4 {[%emt 0:11:21]} f4 {[%emt 0:03:04]} 15. Rad1 {[%emt 0:04:25]} f3 {[%emt 0:00:13]} 16. g3 {[%emt 0:01:08]} Qg5 {[%emt 0:00:29]} 17. c5 {[%emt 0:03:32]} Qg4 {[%emt 0:06:07]} 18. Rfe1 {[%emt 0:01:15]} Rf6 {[%emt 0:06:04]} 19. cxd6 {[%emt 0:09:25]} Rh6 {[%emt 0:01:38]} 20. Bf1 {[%emt 0:02:13]} Qh5 {[%emt 0:00:59]} 21. h4 {[%emt 0:00:52]} g5 {[%emt 0:00:43]} 22. Re3 {[%emt 0:01:14]} Rf8 {[%emt 0:00:58]} 23. Rdd3 {[%emt 0:01:44]} Bg4 {[%emt 0:01:04]} 24. Nd2 {[%emt 0:03:46]} Nd4 {[%emt 0:00:55]} 25. Rxd4 {[%emt 0:01:04]} exd4 {[%emt 0:00:05]} 26. Qxd4 {[%emt 0:00:10]} Be6 {[%emt 0:01:29]} 27. d7 {[%emt 0:00:34]} Rd8 {[%emt 0:05:01]} 28. Bc4 {[%emt 0:00:46]} Qg4 {[%emt 0:01:48]} 29. Rxf3 {[%emt 0:00:39]} gxh4 {[%emt 0:01:51]} 30. Bxe6+ {[%emt 0:00:24]} Qxe6 {[%emt 0:00:14]} 31. Rd3 {[%emt 0:01:09]} Rg6 {[%emt 0:00:59]} 32. Qc4 {[%emt 0:00:00]} hxg3 {[%emt 0:00:29]} 33. Qxe6+ {[%emt 0:00:27]} Rxe6 {[%emt 0:00:03]} 34. Rxg3+ {[%emt 0:00:16]} Rg6 {[%emt 0:00:18]} 0-1